Cogmind - Beta 12 @@@ ROGUE MODE // 2023.09.16 @ 20:06:54 Player: monistgf Result: Destroyed by P-80 Master with Gamma Rifle Performance ------------- Evolutions (7) 3500 Regions Visited (12) 2400 Robots Destroyed (226) 1130 Value Destroyed (10910) 10910 Prototype IDs (8) 160 Alien Tech Used (0) 0 Bonus (2137) 2137 TOTAL SCORE: 20237 Bonus ------- High Alert Combat Kills 737 Entered Garrisons 400 Used RIF Installer 1000 Cogmind --------- Core Integrity 0/1300 Matter 276/300 Energy 100/100 System Corruption 12% Temperature Cool (0) Movement Core (50) Location -3/Research Parts ------- > --- POWER (3) -------- (None) > --- PROPULSION (6) --- (None) > --- UTILITY (9) ------ (None) > --- WEAPON (3) ------- (None) > --- INVENTORY (5) ---- Relay Coupler [NC] (27) Relay Coupler [Grunt] (33) Compact HERF Cannon Compact HERF Cannon Matter Neutralizer Peak State ------------ > --- POWER ------------ Light Ion Engine Light Antimatter Reactor Light Antimatter Reactor > --- PROPULSION ------- Centrium Heavy Treads Flexi-carbon Leg Flexi-carbon Leg Flexi-carbon Leg Biometal Leg > --- UTILITY ---------- Advanced Heat Sink Advanced Heat Sink High-capacity Storage Unit Energy Well Phase Shifter Layered Heavy Armor Plating Improved Thermal Shield Authchip [R/Combat] > --- WEAPON ----------- Cooled Plasma Rifle Cooled Plasma Rifle Cooled Plasma Rifle > --- INVENTORY -------- Light Antimatter Reactor Flexi-carbon Leg Flexi-carbon Leg Authchip [R/Combat] Relay Coupler [NC] Relay Coupler [NC] Relay Coupler [Grunt] Relay Coupler [Grunt] Relay Coupler [Brawler] Relay Coupler [Specialist] Cooled Plasma Rifle Cooled Plasma Rifle Compact HERF Cannon Compact HERF Cannon Matter Neutralizer Enhanced Gauss Cannon Hardcell Cannon Hardcell Cannon Improved Proton Missile Launcher Improved Remote Datajack [Rating: 130] Favorites ----------- Power Light Angular Momentum Engine Engine Light Angular Momentum Engine Power Core Micro Fission Core Reactor Light Antimatter Reactor Propulsion Armored Treads Treads Armored Treads Leg Flexi-carbon Leg Wheel Wheel Utility Advanced Heat Sink Device Advanced Heat Sink Storage Large Storage Unit Processor Advanced Targeting Computer Hackware Authchip [R/Combat] Protection Improved Light Armor Plating Weapon Heavy Plasma Cannon Energy Gun Beam Rifle Energy Cannon Heavy Plasma Cannon Ballistic Gun KE Penetrator Ballistic Cannon Enhanced Gauss Cannon Launcher Improved Proton Missile Launcher Special Weapon Improved Remote Datajack Impact Weapon Heavy Flail Slashing Weapon Power Sword Piercing Weapon Lance Special Melee Weapon Improved Datajack Build | -11 -10 -9 -8 -7 -7 -7 -6 -6 -6 -5 -4 -3 ------- Run | Jun Mat Mat Mat Fac Gar Fac Fac Gar Fac Fac Fac Res Slots Evolved 14 | . . 2 2 2 . . 2 . . 2 2 2 Power 2 | . . . . . . . 1 . . . . 1 Propulsion 4 | . . 1 . . . . 1 . . 1 1 . Utility 7 | . . . 2 2 . . . . . 1 1 1 Weapon 1 | . . 1 . . . . . . . . . . Parts Attached 339 | 5 10 22 44 8 27 5 8 30 35 56 50 39 Power 30 | 1 . 2 . . 1 . 1 3 6 5 5 6 Engine 17 | 1 . 1 . . 1 . 1 3 4 4 . 2 Core 5 | . . 1 . . . . . . . 1 3 . Reactor 8 | . . . . . . . . . 2 . 2 4 Propulsion 71 | 2 4 7 11 3 3 . 1 2 3 15 11 9 Treads 26 | . . . 3 3 3 . 1 2 3 4 4 3 Leg 44 | 2 4 7 8 . . . . . . 10 7 6 Wheel 1 | . . . . . . . . . . 1 . . Hover . | . . . . . . . . . . . . . Flight . | . . . . . . . . . . . . . Utility 107 | . 3 9 16 5 9 . 4 10 13 13 14 11 Device 72 | . 1 5 11 4 5 . 4 7 9 8 11 7 Storage 9 | . 1 3 . 1 . . . 1 . 1 1 1 Processor 7 | . . 1 2 . 1 . . . . 2 . 1 Hackware 6 | . . . . . . . . 1 2 . 2 1 Protection 13 | . 1 . 3 . 3 . . 1 2 2 . 1 Artifact . | . . . . . . . . . . . . . Weapon 131 | 2 3 4 17 . 14 5 2 15 13 23 20 13 Energy Gun 51 | . 3 4 14 . 6 1 . 3 1 4 10 5 Energy Cannon 18 | . . . . . 2 3 . 2 5 2 2 2 Ballistic Gun 12 | 2 . . . . . . . 2 3 4 1 . Ballistic Cannon 13 | . . . 2 . . . . . . 2 5 4 Launcher 9 | . . . . . . . 1 3 1 3 . 1 Special Weapon 5 | . . . . . . . . . . 3 1 1 Impact Weapon 2 | . . . 1 . . . . . . 1 . . Slashing Weapon 16 | . . . . . 6 1 1 4 . 4 . . Piercing Weapon 1 | . . . . . . . . . . . 1 . Special Melee Weapon 4 | . . . . . . . . 1 3 . . . Unidentified Prototypes 8 | . . . 1 . . . . . . . 3 4 Parts Lost 99 | . . . 5 1 10 . 1 5 7 20 21 29 Power 19 | . . . . . 1 . . 3 1 4 4 6 Propulsion 26 | . . . . . 3 . . . 1 8 6 8 Utility 31 | . . . 4 1 3 . 1 2 2 4 6 8 Weapon 23 | . . . 1 . 3 . . . 3 4 5 7 Highest Loss Streak 14 | . . . 2 1 4 . 1 2 4 9 11 14 To Critical Strikes . | . . . . . . . . . . . . . Average Slot Usage (%) 88 | . 84 100 99 99 98 92 92 76 77 88 83 85 Engine 8 | . 14 5 9 7 6 7 13 12 10 7 1 2 Reactor 1 | . . . . . . . . . 1 1 . 8 Treads 11 | . . . 4 22 22 23 26 15 15 2 10 4 Leg 10 | . 28 33 22 . . . . . . 19 10 18 Device 13 | . 2 9 8 22 22 15 12 9 7 17 18 14 Storage 7 | . 11 11 9 7 7 7 6 6 6 5 6 11 Processor 4 | . . 1 9 7 7 7 6 1 . 7 4 . Hackware 2 | . . . . . . . . 1 6 . 5 8 Protection 5 | . . . 8 7 7 7 6 5 5 4 2 . Energy Gun 10 | . 4 33 20 23 19 9 4 1 3 4 7 9 Energy Cannon 3 | . . . . . . 8 13 13 2 1 . 2 Ballistic Gun 2 | . 23 . . . . . . 1 10 1 . . Ballistic Cannon 1 | . . . 5 . . . . . . 3 5 1 Slashing Weapon 1 | . . . . . 2 4 1 2 1 1 . . Naked Turns 11 | . . . . . . . . . . . . 11 Heaviest Build 222 | 8 22 40 46 47 62 76 91 222 198 90 94 112 Greatest Support 150 | 20 20 39 60 60 60 60 80 150 150 97 120 128 Greatest Overweight (x) 7 | 2 1 1 2 1 1 1 1 2 1 7 3 2 Average Overweight (x) . | . . . . . . 1 1 1 1 . . . Largest Inventory Capacity 30 | 5 10 15 15 15 15 15 15 30 30 30 20 20 Average Capacity 19 | 5 9 12 15 15 15 15 15 27 30 20 20 19 Most Carried 30 | 2 10 15 15 15 15 15 15 30 30 30 20 20 Average Carried 19 | 1 7 11 14 14 14 14 14 26 29 19 19 19 Final Capacity 30 | 5 10 15 15 15 15 15 15 30 30 20 20 5 Final Carried 30 | 2 10 15 15 15 15 15 14 30 30 20 20 5 Class Distribution -------------------- 26% | Bothacker-Mutant 20% | Gunner 20% | Bothacker-Tank 12% | Mutant 8% | Scavenger-Gunner 4% | Bothacker-Gunner 3% | Scavenger-Mutant Dominant Class ---------------- Mutant | -10/Materials Scavenger-Gunner | -9/Materials Scavenger-Gunner | -8/Materials Gunner | -7/Factory Gunner | -7/Garrison Mutant | -7/Factory Gunner | -6/Factory Bothacker-Mutant | -6/Garrison Bothacker-Tank | -6/Factory Bothacker-Mutant | -5/Factory Bothacker-Mutant | -4/Factory Bothacker-Tank | -3/Research Resources | -11 -10 -9 -8 -7 -7 -7 -6 -6 -6 -5 -4 -3 ----------- Run | Jun Mat Mat Mat Fac Gar Fac Fac Gar Fac Fac Fac Res Matter Collected 6048 | 227 301 403 761 95 205 60 77 314 1056 768 1055 726 Remotely 242 | . . . 242 . . . . . . . . . Salvage Created 11484 | . 291 714 1328 223 953 96 354 1982 1725 987 1081 1750 Parts 426 | . 18 30 76 4 33 8 12 45 57 49 39 55 Haulers Intercepted 13 | . 1 4 4 . . . 1 . 1 . . 2 Recyclers Shooed 4 | . 1 . 1 . . . . . 2 . . . Parts Field Recycled . | . . . . . . . . . . . . . Retrieved Matter . | . . . . . . . . . . . . . Parts Self-Destructed . | . . . . . . . . . . . . . Prevented . | . . . . . . . . . . . . . Kills | -11 -10 -9 -8 -7 -7 -7 -6 -6 -6 -5 -4 -3 ------- Run | Jun Mat Mat Mat Fac Gar Fac Fac Gar Fac Fac Fac Res Combat Hostiles Destroyed 190 | . 7 11 29 5 19 1 3 22 25 25 23 20 Melee 4 | . . . . . . . . 1 . 2 1 . Guns 98 | . 7 11 16 3 17 . . . 22 7 7 8 Cannons 55 | . . . 12 . 1 1 . 14 2 9 11 5 AOE 15 | . . . 1 . . . 2 2 . 7 3 . Classes Destroyed 14 | . 3 2 6 1 . . . . 2 . . . Worker 5 | . . . . . . . . . 2 2 . 1 Builder 7 | . . . 1 . . 1 1 . 2 1 1 . Hauler 13 | . 1 4 4 . . . 1 . 1 . . 2 Recycler 5 | . . . 3 . . . . . 1 . . 1 Watcher 6 | . . 1 1 . . 1 1 . . 1 . 1 Swarmer 38 | . 2 . 10 . 7 . . 3 . 12 4 . Grunt 92 | . 5 7 9 2 8 . 2 16 14 6 14 9 Brawler 1 | . . . . . . . . . 1 . . . Duelist 9 | . . . 1 . 1 . . 1 4 1 . 1 Sentry 21 | . . 4 5 2 3 . 1 1 2 1 1 1 Specialist 2 | . . . 2 . . . . . . . . . Hunter 12 | . . . 1 . . . . 1 . 3 2 5 Programmer 13 | . . . . 1 . 1 . . 4 2 2 3 Heavy 2 | . . . 1 . . . . . . . . 1 Best Kill Streak 7 | . 4 5 5 3 4 2 4 4 5 7 5 4 Combat Bots Only 5 | . 4 4 5 3 4 1 2 4 4 5 5 4 Max Kills in Single Turn 3 | . 1 1 2 2 2 2 2 2 2 3 2 2 Gunslinging 1 | . . . . . 1 . . . . . . . Exploded 3 | . . . 1 . . . 2 2 . 3 2 . Melee 1 | . . . . . . . . 1 . 1 1 . Uniques/NPCs Destroyed . | . . . . . . . . . . . . . Combat | -11 -10 -9 -8 -7 -7 -7 -6 -6 -6 -5 -4 -3 -------- Run | Jun Mat Mat Mat Fac Gar Fac Fac Gar Fac Fac Fac Res Damage Taken 25185 | . 377 414 1961 632 1465 45 286 3347 4099 2901 3245 6413 Core 3310 | . 120 88 323 89 120 30 35 309 285 361 229 1321 Absorbed by Shields . | . . . . . . . . . . . . . Reduced by Siege Mode 352 | . . . . . . . . . 129 . 69 154 Regen/Repaired (Parts) 1402 | . . . . . . . . . 1402 . . . Core Remaining (%) 63 | 100 52 78 41 . . 65 . . 26 63 80 . Volleys Fired 583 | . 30 27 85 11 46 2 7 65 79 66 78 87 Largest 3 | . 2 3 3 3 3 3 3 3 3 3 3 3 Hottest 263 | . 40 177 177 182 218 243 243 249 210 194 224 263 Shots Fired 1346 | . 60 81 199 33 127 5 15 122 198 134 148 224 Gun 928 | . 60 81 138 33 122 1 4 18 174 60 69 168 Cannon 381 | . . . 61 . 5 4 8 96 22 57 75 53 Launcher 24 | . . . . . . . 3 8 2 9 . 2 Special 13 | . . . . . . . . . . 8 4 1 Kinetic 414 | . 60 . 61 . . . . . 134 70 65 24 Thermal 853 | . . 81 138 33 127 5 12 114 62 36 78 167 Explosive . | . . . . . . . . . . . . . Electromagnetic 68 | . . . . . . . 3 8 2 22 1 32 Robot Hit Streak 45 | . 10 21 19 14 31 4 14 45 21 14 14 14 Robot Miss Streak 6 | . 4 2 4 1 3 1 1 3 5 6 2 3 Penetration Max 2 | . . . . . . . . . 2 . . 1 Secondary Targets 13 | . 2 2 . 1 3 . . . 5 . . . Max Gunslinging Chain 1 | . 1 1 . 1 1 . . . 1 . . . Shots Hit Robots 1058 | . 41 64 149 29 109 4 16 127 161 101 106 151 Core Hits 512 | . 18 25 104 10 46 3 6 54 84 52 52 58 Critical Kills 6 | . . . . . . . 2 3 1 . . . Critical Parts Destroyed 5 | . . . . . . . . . 5 . . . Critical Strikes 68 | . . 10 6 1 3 . 2 7 6 9 8 16 Burn 35 | . . 10 6 1 1 . . 3 . 1 1 12 Meltdown 6 | . . . . . . . 2 3 1 . . . Destroy 5 | . . . . . . . . . 5 . . . Blast 18 | . . . . . . . . . . 8 7 3 Corrupt 1 | . . . . . . . . . . . . 1 Sever 3 | . . . . . 2 . . 1 . . . . Melee Attacks 114 | . . . 5 . 26 1 4 40 5 29 4 . Impact 5 | . . . 5 . . . . . . . . . Slashing 99 | . . . . . 26 1 4 39 . 29 . . Piercing 4 | . . . . . . . . . . . 4 . Sneak Attacks 4 | . . . . . . . 1 . 3 . . . Combat Hostiles . | . . . . . . . . . . . . . Follow-up Attacks . | . . . . . . . . . . . . . Damage Inflicted 29570 | . 485 894 2607 549 2287 154 686 5541 4840 3527 3682 4318 Guns 14150 | . 485 894 1495 549 1479 16 68 275 4083 835 1169 2802 Cannons 8964 | . . . 1112 . 107 138 224 2423 656 1286 1716 1302 Explosions 2494 | . . . . . . . 286 452 86 824 672 174 Melee 3889 | . . . . . 701 . 108 2391 . 566 123 . Ramming 58 | . . . . . . . . . 15 1 2 40 Kinetic 8315 | . 485 . 1112 . . . . . 3089 1449 1549 631 Thermal 14317 | . . 894 1495 549 1586 154 352 2698 1650 842 1295 2802 Explosive 608 | . . . . . . . . . . . 608 . Electromagnetic 2383 | . . . . . . . 226 452 86 669 105 845 Impact . | . . . . . . . . . . . . . Slashing 3766 | . . . . . 701 . 108 2391 . 566 . . Piercing 123 | . . . . . . . . . . . 123 . Highest Corruption 12 | . 1 . . . . . . 2 10 3 2 12 Average Corruption 4 | . 1 . . . . . . 1 8 1 2 1 Corruption Purged . | . . . . . . . . . . . . . Corruption Blocked . | . . . . . . . . . . . . . Effects 90 | . . . . . . . . 7 61 8 6 8 Message Errors 16 | . . . . . . . . 1 12 2 1 . Matter Fused 23 | . . . . . . . . 2 17 1 1 2 Heat Flow Errors 14 | . . . . . . . . 3 9 1 . 1 Energy Discharges 9 | . . . . . . . . . 8 1 . . Parts Rejected 1 | . . . . . . . . . 1 . . . Parts Fused 1 | . . . . . . . . . . . . 1 Data Loss (minor) 8 | . . . . . . . . . 5 1 1 1 Data Loss (major) 7 | . . . . . . . . 1 3 2 . 1 Misfires 5 | . . . . . . . . . 1 . 2 2 Alerts 1 | . . . . . . . . . 1 . . . Weapon Failures 5 | . . . . . . . . . 4 . 1 . Overload Shots 3 | . . . . . . . . . . . 1 2 Overflow Damage 430 | . . . . . 16 14 59 134 11 109 78 9 Projectiles 101 | . . . . . . 14 . 22 11 40 14 . Explosions 124 | . . . . . . . 11 . . 47 57 9 Melee 205 | . . . . . 16 . 48 112 . 22 7 . Knockbacks 57 | . . . 31 . . . . . . 1 17 8 Impact . | . . . . . . . . . . . . . Kinetic 50 | . . . 26 . . . . . . 1 17 6 Secondary 7 | . . . 5 . . . . . . . . 2 Self-Inflicted Damage 212 | . . . . . . . . 60 . 17 85 50 Shots 9 | . . . . . . . . 3 . 2 2 2 Rammed 9 | . . . . . . . . . 1 . 1 7 Targets Rammed 10 | . . . . . . . . . 1 1 1 7 Kicked 1 | . . . . . . . . . . 1 . . Crushed . | . . . . . . . . . . . . . Highest Temperature 473 | . 27 354 334 212 291 126 302 473 331 45 137 273 Average Temperature 113 | . 9 121 118 82 71 55 139 131 131 14 70 88 Received Heat Transfer 5556 | . 168 156 468 204 480 . 123 1308 1201 507 721 220 Effects 16 | . . 5 3 . . . . 5 3 . . . Shutdowns 4 | . . 1 1 . . . . 2 . . . . Energy Bleed 4 | . . 1 2 . . . . . 1 . . . Interference 8 | . . 3 . . . . . 3 2 . . . Siege Activations 12 | . . . . . . . . . 4 . 3 5 Total Turns 304 | . . . . . . . . . 128 . 59 117 Longest Duration 55 | . . . . . . . . . 51 . 29 55 Robots Corrupted 2 | . . . . . . . . . . 1 . 1 Combat Hostiles 1 | . . . . . . . . . . . . 1 Parts Fried 12 | . . . . . . . . 1 . 2 . 9 Impact Corruptions . | . . . . . . . . . . . . . Robots Melted 18 | . . . . 2 1 . 2 5 1 . 1 6 Combat Hostiles 17 | . . . . 2 1 . 1 5 1 . 1 6 Parts Melted 87 | . . 11 9 7 9 1 1 13 5 3 3 25 Heat Transferred 30564 | . . 3108 4070 1147 3344 237 548 4279 3150 1489 2364 6828 Parts Sabotaged . | . . . . . . . . . . . . . Parts Stolen . | . . . . . . . . . . . . . Parts Stripped . | . . . . . . . . . . . . . Power Chain Reactions 4 | . . . . . . . 1 . . 2 1 . Missiles Intercepted . | . . . . . . . . . . . . . Alert | -11 -10 -9 -8 -7 -7 -7 -6 -6 -6 -5 -4 -3 ------- Run | Jun Mat Mat Mat Fac Gar Fac Fac Gar Fac Fac Fac Res Peak Influence 1033 | . 210 298 438 206 778 465 271 1033 699 354 445 415 Initial 541 | . . 5 93 131 53 408 138 50 541 342 153 174 Average 330 | . 98 167 217 102 412 375 147 555 574 191 311 289 Maximum Alert Level 3 | . 1 1 2 1 3 2 1 3 2 1 2 2 Low Security (%) 31 | 100 88 53 42 95 13 . 90 12 . 61 7 8 Level 1 38 | . 11 46 55 4 35 29 9 29 6 38 78 79 Level 2 23 | . . . 1 . 40 70 . 17 93 . 13 12 Level 3 6 | . . . . . 9 . . 40 . . . . Level 4 . | . . . . . . . . . . . . . Level 5 . | . . . . . . . . . . . . . High Security . | . . . . . . . . . . . . . Max Security . | . . . . . . . . . . . . . Squads Dispatched 39 | . 1 1 4 4 . 1 3 . 10 4 5 6 Investigation 4 | . 1 1 . . . . . . . . 1 1 Extermination 11 | . . . . 1 . 1 1 . 3 2 1 2 Reinforcement 16 | . . . 4 1 . . 1 . 2 2 3 3 Assault 3 | . . . . . . . . . 3 . . . Garrison 5 | . . . . 2 . . 1 . 2 . . . Intercept . | . . . . . . . . . . . . . Searches Triggered . | . . . . . . . . . . . . . Construction Impeded 6 | . . . . . . . . . 1 2 2 1 Haulers Reinforced 1 | . . . . . . . . . . . . 1 Active Scanning Responses . | . . . . . . . . . . . . . Cargo Convoy Interrupts 1 | . . . . . . . . . . . . 1 Stealth | -11 -10 -9 -8 -7 -7 -7 -6 -6 -6 -5 -4 -3 --------- Run | Jun Mat Mat Mat Fac Gar Fac Fac Gar Fac Fac Fac Res Distress Signals 8 | . 1 1 1 . . . . . 1 2 1 1 Communications Jammed . | . . . . . . . . . . . . . Distress Signals . | . . . . . . . . . . . . . Times Spotted 280 | . 13 13 43 7 21 2 7 25 39 36 29 45 Peak Tracking Total 13 | . 6 4 6 3 4 1 4 4 5 6 4 13 Tactical Retreats 21 | . . . 5 . 3 . . 2 1 4 2 4 Traps | -11 -10 -9 -8 -7 -7 -7 -6 -6 -6 -5 -4 -3 ------- Run | Jun Mat Mat Mat Fac Gar Fac Fac Gar Fac Fac Fac Res Traps Triggered 11 | . 2 1 . 2 1 . . 3 1 . . 1 Indirectly . | . . . . . . . . . . . . . Trap Hack Attempts . | . . . . . . . . . . . . . Triggered . | . . . . . . . . . . . . . Disarmed . | . . . . . . . . . . . . . Reprogrammed . | . . . . . . . . . . . . . Reused . | . . . . . . . . . . . . . Traps Extracted . | . . . . . . . . . . . . . Installed . | . . . . . . . . . . . . . Triggered . | . . . . . . . . . . . . . Machines | -11 -10 -9 -8 -7 -7 -7 -6 -6 -6 -5 -4 -3 ---------- Run | Jun Mat Mat Mat Fac Gar Fac Fac Gar Fac Fac Fac Res Machines Disabled 20 | . . . . . 6 . . 4 3 1 6 . Max in Single Turn 2 | . . . . . 1 . . 1 1 1 2 . Garrison Access 2 | . . . . . . . . . 1 1 . . Garrison Relay 6 | . . . . . 3 . . 3 . . . . Machines Repaired . | . . . . . . . . . . . . . Machines Sabotaged . | . . . . . . . . . . . . . Overloaded Fab Kills . | . . . . . . . . . . . . . Hacking | -11 -10 -9 -8 -7 -7 -7 -6 -6 -6 -5 -4 -3 --------- Run | Jun Mat Mat Mat Fac Gar Fac Fac Gar Fac Fac Fac Res Machines Accessed 41 | . 4 5 6 5 2 4 3 2 4 3 2 1 Terminals 32 | . 4 5 6 4 2 4 1 2 2 1 . 1 Fabricators 2 | . . . . . . . 1 . . . 1 . Repair Stations 2 | . . . . . . . . . 1 . 1 . Recycling Units . | . . . . . . . . . . . . . Scanalyzers 1 | . . . . . . . . . . 1 . . Garrison Access 4 | . . . . 1 . . 1 . 1 1 . . Total Hacks 82 | . 8 9 16 10 2 7 6 4 9 5 5 1 Successful 41 | . 5 7 5 3 2 3 4 1 6 4 1 . Failed 41 | . 3 2 11 7 . 4 2 3 3 1 4 1 Catastrophic 14 | . 2 . 3 2 . 2 1 2 . 1 1 . Database Lockouts . | . . . . . . . . . . . . . Manual 35 | . 5 6 10 6 . 2 3 . . 2 . 1 Terminals 66 | . 8 9 16 9 2 7 3 4 5 2 . 1 Fabricators 4 | . . . . . . . 2 . . . 2 . Repair Stations 6 | . . . . . . . . . 3 . 3 . Recycling Units . | . . . . . . . . . . . . . Scanalyzers 2 | . . . . . . . . . . 2 . . Garrison Access 4 | . . . . 1 . . 1 . 1 1 . . Terminal Hacks 27 | . 5 6 4 1 2 3 1 1 3 1 . . Robot Schematic 1 | . . . . . . . . . 1 . . . Robot Analysis 4 | . 3 1 . . . . . . . . . . Level Access Points 2 | . . 1 . . . 1 . . . . . . Branch Access Points 4 | . . 1 1 . . 1 1 . . . . . Emergency Access Points 1 | . . . . . 1 . . . . . . . Alert Level 5 | . 1 1 2 1 . . . . . . . . Unreport Threat 2 | . . . 1 . . . . . . 1 . . Hauler Manifests 4 | . 1 1 . . . 1 . . 1 . . . Zone Layout 2 | . . 1 . . . . . . 1 . . . Security Stations 2 | . . . . . 1 . . 1 . . . . Fabricator Hacks 2 | . . . . . . . 2 . . . . . Network Status 2 | . . . . . . . 2 . . . . . Repair Station Hacks 3 | . . . . . . . . . 2 . 1 . Scan Component 2 | . . . . . . . . . 1 . 1 . Repair 1 | . . . . . . . . . 1 . . . Recycling Unit Hacks . | . . . . . . . . . . . . . Scanalyzer 1 | . . . . . . . . . . 1 . . Insert Component 1 | . . . . . . . . . . 1 . . Garrison Access Hacks 4 | . . . . 1 . . 1 . 1 1 . . Unlock Access 2 | . . . . 1 . . 1 . . . . . Seal Access 2 | . . . . . . . . . 1 1 . . Unauthorized Hacks 4 | . . 1 1 1 . . . . . 1 . . Terminals 4 | . . 1 1 1 . . . . . 1 . . Track 1 | . . . . . . . . . . 1 . . Botnet 3 | . . 1 1 1 . . . . . . . . Fabricators . | . . . . . . . . . . . . . Repair Stations . | . . . . . . . . . . . . . Recycling Units . | . . . . . . . . . . . . . Scanalyzers . | . . . . . . . . . . . . . Garrison Access . | . . . . . . . . . . . . . Data Cores Recovered . | . . . . . . . . . . . . . Used . | . . . . . . . . . . . . . Hacking Detections 35 | . 3 3 6 5 2 3 3 2 3 2 2 1 Full Trace Events 3 | . . . . . . . . 2 . . 1 . Feedback Events . | . . . . . . . . . . . . . Feedback Blocked . | . . . . . . . . . . . . . Robot Schematics Acquired 1 | . . . . . . . . . 1 . . . Robots Built . | . . . . . . . . . . . . . Authchips . | . . . . . . . . . . . . . Time . | . . . . . . . . . . . . . Total Robot Build Rating . | . . . . . . . . . . . . . Part Schematics Acquired . | . . . . . . . . . . . . . Parts Built . | . . . . . . . . . . . . . Authchips . | . . . . . . . . . . . . . Time . | . . . . . . . . . . . . . Total Part Build Rating . | . . . . . . . . . . . . . Parts Repaired 1 | . . . . . . . . . 1 . . . Time 31 | . . . . . . . . . 31 . . . Parts Recycled . | . . . . . . . . . . . . . Recycled Matter . | . . . . . . . . . . . . . Retrieved Matter . | . . . . . . . . . . . . . Retrieved Components . | . . . . . . . . . . . . . Parts Scanalyzed 1 | . . . . . . . . . . 1 . . Part Schematics Acquired . | . . . . . . . . . . . . . Parts Damaged . | . . . . . . . . . . . . . Bothacking | -11 -10 -9 -8 -7 -7 -7 -6 -6 -6 -5 -4 -3 ------------ Run | Jun Mat Mat Mat Fac Gar Fac Fac Gar Fac Fac Fac Res Used RIF Installer 2 | . . . . . 1 . . 1 . . . . Hotswap 1 | . . . . . . . . 1 . . . . Robots Hacked 10 | . . . . . . . . 1 4 2 2 1 Non-combat 4 | . . . . . . . . . 2 2 . . Combat 6 | . . . . . . . . 1 2 . 2 1 Robot Hacks Applied 11 | . . . . . . . . 1 4 2 3 1 map_route 1 | . . . . . . . . . . 1 . . mark_security 1 | . . . . . . . . . . 1 . . scatter_targeting 1 | . . . . . . . . . 1 . . . amplify_resonance 2 | . . . . . . . . . . . 1 1 disable_weapons 2 | . . . . . . . . . . . 2 . formatsys_low 2 | . . . . . . . . . 2 . . . formatsys_high 2 | . . . . . . . . 1 1 . . . Relay Couplers Released 21 | . . . . . 10 . . 11 . . . . Machine Destruction 21 | . . . . . 10 . . 11 . . . . Attached 4 | . . . . . . . . 1 2 . 1 . Fabnet Peak Effective % . | . . . . . . . . . . . . . Robots Rewired . | . . . . . . . . . . . . . Allies Hacked . | . . . . . . . . . . . . . Hacks Repelled . | . . . . . . . . . . . . . Allies | -11 -10 -9 -8 -7 -7 -7 -6 -6 -6 -5 -4 -3 -------- Run | Jun Mat Mat Mat Fac Gar Fac Fac Gar Fac Fac Fac Res Total Allies 4 | . . . . . . . . 1 3 . . . Largest Group 2 | . . . . . . . . 1 2 1 . . Highest-Rated Group 55 | . . . . . . . . 41 55 23 . . Highest-Rated Ally 41 | . . . . . . . . 41 32 23 . . Total Orders 2 | . . . . . . . . . 2 . . . AID 2 | . . . . . . . . . 2 . . . Ally Attacks 1 | . . . . . . . . . 1 . . . Total Damage 63 | . . . . . . . . . 63 . . . Kills . | . . . . . . . . . . . . . Allies Corrupted . | . . . . . . . . . . . . . Allies Melted . | . . . . . . . . . . . . . Intel | -11 -10 -9 -8 -7 -7 -7 -6 -6 -6 -5 -4 -3 ------- Run | Jun Mat Mat Mat Fac Gar Fac Fac Gar Fac Fac Fac Res Robot Analysis Total 4 | . 3 1 . . . . . . . . . . Derelict Logs Recovered . | . . . . . . . . . . . . . Drone Launches . | . . . . . . . . . . . . . Drone Recoveries . | . . . . . . . . . . . . . Exploration | -11 -10 -9 -8 -7 -7 -7 -6 -6 -6 -5 -4 -3 ------------- Run | Jun Mat Mat Mat Fac Gar Fac Fac Gar Fac Fac Fac Res Turns Passed 14410 | 43 463 689 2046 556 1330 565 517 2024 1830 1978 1221 1148 Spaces Moved 5609 | 31 266 323 764 283 526 217 186 666 591 814 497 445 Core 20 | 7 . . . . . . . . . . . 13 Treads 3488 | . . . 153 283 526 217 186 666 591 199 421 246 Legs 2070 | 24 266 323 611 . . . . . . 584 76 186 Wheels 31 | . . . . . . . . . . 31 . . Hover . | . . . . . . . . . . . . . Flight . | . . . . . . . . . . . . . Fastest Speed 50 | 50 120 120 123 170 170 250 247 167 238 112 120 50 Average Speed 189 | 110 120 133 183 170 177 250 247 241 239 178 164 160 Slowest Speed 330 | 150 190 190 330 250 250 250 247 327 240 265 330 330 Overloaded Moves . | . . . . . . . . . . . . . Propulsion Burnouts . | . . . . . . . . . . . . . Robots Hopped 2 | . . . . . . . . 2 . . . . Cave-ins Triggered . | . . . . . . . . . . . . . Exploration Rate (%) 26 | 3 47 35 67 7 57 6 6 60 17 18 9 11 Regions Visited 12 Branch Regions . Pre-discovered Areas . | . . . . . . . . . . . . . Known Exits Taken 6 | . . 1 . 1 . 1 1 . . 1 1 . Unknown Exits Taken 4 | 1 1 . 1 . . . . . 1 . . . Scrap Searched . | . . . . . . . . . . . . . Spaces Dug 23 | . . . 5 . . 1 1 2 3 6 2 3 Terrain Destroyed 143 | . . . 5 . . 1 8 2 17 33 73 4 Melee 15 | . . . 5 . . 1 1 2 . 6 . . Projectile 60 | . . . . . . . 1 . 17 11 27 4 AOE 68 | . . . . . . . 6 . . 16 46 . Terrain Rammed . | . . . . . . . . . . . . . Walls Destroyed . | . . . . . . . . . . . . . Machines Disabled . | . . . . . . . . . . . . . Actions | -11 -10 -9 -8 -7 -7 -7 -6 -6 -6 -5 -4 -3 --------- Run | Jun Mat Mat Mat Fac Gar Fac Fac Gar Fac Fac Fac Res Total 8136 | 37 356 538 1240 329 786 233 226 907 832 1176 775 701 Wait 1081 | . 25 116 295 24 127 7 12 44 84 168 91 88 Move 5594 | 30 265 322 763 283 525 216 185 661 590 813 496 445 Hop 2 | . . . . . . . . 2 . . . . Pick Up 191 | 2 14 22 16 2 19 1 6 36 22 17 24 10 Fast Attach 90 | 5 4 2 10 4 2 . . 3 2 17 22 19 Attach 78 | . . 2 9 2 10 1 3 5 10 14 12 10 Detach 18 | . . 1 2 . . . . 3 . 4 2 6 Swap 171 | . 6 18 25 2 15 4 5 22 23 25 16 10 Drop 196 | . 12 28 30 1 16 1 4 21 13 22 29 19 Fire 583 | . 30 27 85 11 46 2 7 65 79 66 78 87 Melee 114 | . . . 5 . 26 1 4 40 5 29 4 . Ram 5 | . . . . . . . . . . . . 5 Kick 1 | . . . . . . . . . . 1 . . Crush 4 | . . . . . . . . . 1 . 1 2 Escape Stasis 4 | . . . . . . . . 4 . . . . Rewire 4 | . . . . . . . . 1 3 . . . Trap . | . . . . . . . . . . . . . Miscellaneous . | . . . . . . . . . . . . . Route ------- -11/Junkyard -10/Materials (discovered 2 exits: *Mat / [*Min]) -9/Materials (discovered 5 exits: *Mat x3 / Min x2) -8/Materials (discovered 4 exits: *Fac x3 / *Sto) -7/Factory (discovered 2 exits: *Low / Gar) -7/Garrison (discovered 2 exits: *Fac x2) -7/Factory (discovered 6 exits: *Fac x4 / Low x2) -6/Factory (discovered 3 exits: Low x2 / Gar) -6/Garrison (discovered 3 exits: *Fac x3) -6/Factory -5/Factory (discovered 2 exits: *Fac / *Upp) -4/Factory -3/Research (discovered 2 exits: [*Res] / [*Tes]) History --------- Turn | Location | Event 18 | -11/Junkyard | Discovered new exit (range 15) 44 | -11/Junkyard | Entered Materials 166 | -10/Materials | Discovered new exit (range 11) 301 | -10/Materials | Build established: Mutant 490 | -10/Materials | Discovered new exit (range 3) 507 | -10/Materials | Entered another Materials area 507 | -9/Materials | Evolved 2 slots: Propulsion x1, Weapon x1 750 | -9/Materials | Discovered new exit (range 16) 797 | -9/Materials | Identified exit to Materials 930 | -9/Materials | Identified exit to Mines 953 | -9/Materials | Build established: Scavenger-Gunner 1196 | -9/Materials | Entered another Materials area 1196 | -8/Materials | Evolved 2 slots: Utility x2 1313 | -8/Materials | Build established: Gunner 2040 | -8/Materials | Discovered new exit (range 6) 2116 | -8/Materials | Build established: Scavenger-Gunner 2127 | -8/Materials | Core integrity fell below 50% 2726 | -8/Materials | Discovered new exit (range 7) 2933 | -8/Materials | Discovered new exit (range 10) 3208 | -8/Materials | Discovered new exit (range 16) 3229 | -8/Materials | Identified exit to Storage 3242 | -8/Materials | Entered Factory 3242 | -7/Factory | Evolved 2 slots: Utility x2 3422 | -7/Factory | Discovered new exit (range 15) 3500 | -7/Factory | Build established: Gunner 3798 | -7/Factory | Identified exit to Garrison 3798 | -7/Factory | Entered Garrison 3850 | -7/Garrison | Triggered checkpoint 3896 | -7/Garrison | Garrison Relay disabled 4154 | -7/Garrison | Triggered checkpoint 4228 | -7/Garrison | Discovered new exit (range 10) 4272 | -7/Garrison | Triggered checkpoint 4338 | -7/Garrison | Garrison Relay disabled 4359 | -7/Garrison | Learned Factory security intel 4446 | -7/Garrison | Triggered checkpoint 4507 | -7/Garrison | Heavy support dispatched to Factory 4543 | -7/Garrison | Triggered checkpoint 4574 | -7/Garrison | Installed Relay Interface Framework 4662 | -7/Garrison | Lost 4 parts (2n1u1w) 4676 | -7/Garrison | Garrison Relay disabled 4897 | -7/Garrison | Lost 3 parts (1p1n1u) 4944 | -7/Garrison | Discovered new exit (range 10) 5098 | -7/Garrison | H-XX Assembler disabled 5128 | -7/Garrison | Entered Factory 5287 | -7/Factory | Build established: Mutant 5581 | -7/Factory | Identified exit to Lower Caves 5581 | -7/Factory | Identified exit to Factory 5693 | -7/Factory | Entered another Factory area 5693 | -6/Factory | Evolved 2 slots: Power x1, Propulsion x1 5734 | -6/Factory | Build established: Gunner 6059 | -6/Factory | Identified exit to Lower Caves 6070 | -6/Factory | Garrison activated, responded to threat 6197 | -6/Factory | Identified exit to Garrison 6210 | -6/Factory | Entered Garrison 6259 | -6/Garrison | Expanded RIF knowledge: Hotswap 6334 | -6/Garrison | Triggered checkpoint 6460 | -6/Garrison | Garrison Relay disabled 6827 | -6/Garrison | Triggered checkpoint 6917 | -6/Garrison | Discovered new exit (range 5) 6975 | -6/Garrison | Build established: Bothacker-Mutant 7051 | -6/Garrison | Triggered checkpoint 7051 | -6/Garrison | Triggered checkpoint 7320 | -6/Garrison | Discovered new exit (range 13) 7337 | -6/Garrison | Learned Factory security intel 7435 | -6/Garrison | Garrison Relay disabled 7838 | -6/Garrison | Discovered new exit (range 10) 7990 | -6/Garrison | Triggered checkpoint 8077 | -6/Garrison | Build established: Bothacker-Tank 8113 | -6/Garrison | Garrison Relay disabled 8234 | -6/Garrison | Entered Factory 8296 | -6/Factory | Repaired Imp. Heavy Treads 8412 | -6/Factory | Build established: Bothacker-Mutant 8584 | -6/Factory | First assault squad dispatched 8746 | -6/Factory | System corruption reached 10% 8878 | -6/Factory | Core integrity fell below 50% 9460 | -6/Factory | Build established: Bothacker-Tank 9853 | -6/Factory | Discovered new exit (range 15) 9954 | -6/Factory | Lost 4 parts (1p3w) 10064 | -6/Factory | Entered another Factory area 10064 | -5/Factory | Accompanied by 1 ally 10064 | -5/Factory | Evolved 2 slots: Propulsion x1, Utility x1 10186 | -5/Factory | Discovered new exit (range 14) 10507 | -5/Factory | Lost 4 parts (1p2n1u) 10623 | -5/Factory | Lost 9 parts (2p3n2u2w) 11156 | -5/Factory | Lost 3 parts (1p1u1w) 11432 | -5/Factory | Discovered new exit (range 10) 11450 | -5/Factory | Identified exit to Upper Caves 11638 | -5/Factory | Build established: Bothacker-Mutant 12040 | -5/Factory | Identified exit to Factory 12042 | -5/Factory | Entered another Factory area 12042 | -4/Factory | Evolved 2 slots: Propulsion x1, Utility x1 12534 | -4/Factory | Discovered new exit (range 10) 12549 | -4/Factory | Identified exit to Research 12651 | -4/Factory | Lost 4 parts (1n1u2w) 12806 | -4/Factory | Lost 3 parts (1p1n1u) 12924 | -4/Factory | Lost 11 parts (1p4n3u3w) 13263 | -4/Factory | Entered Research 13263 | -3/Research | Evolved 2 slots: Power x1, Utility x1 13473 | -3/Research | Build established: Bothacker-Tank 13560 | -3/Research | Discovered new exit (range 11) 13950 | -3/Research | Spotted B-86 Titan 14024 | -3/Research | Discovered new exit (range 13) 14101 | -3/Research | Lost 11 parts (3p3n3u2w) 14168 | -3/Research | Found Prototype Device 14168 | -3/Research | Identified Exp. Thermal Shield 14334 | -3/Research | Cargo convoy interrupted 14348 | -3/Research | Spotted Striker 14397 | -3/Research | Core integrity fell below 50% 14400 | -3/Research | Released all parts (6) 14403 | -3/Research | System corruption reached 10% 14408 | -3/Research | Core integrity fell below 20% 14411 | -3/Research | Destroyed by P-80 Master with Gamma Rifle Last Messages --------------- 14400_ Released Adv. Signal Interpreter. 14400_ Released Hcp. Storage Unit. 14400_ Released Authchip [R/Combat]. 14400_ Released Energy Well. 14400_ Released Imp. Hacking Suite. 14400_ Released Quantum Shading Machine. 14401_ U-05 Engineer repairs door. 14401_ Slug penetrates Wall. 14401_ Penetrated by Slug. 14401_ P-80 Master resets H-77 Assassin, system corruption cleaned. 14403_ System corrupted: Heat flow error (+271). 14403_ Slammed into P-80 Master. 14406_ P-80 Master resets P-80 Master, system corruption cleaned. 14406_ Slammed into P-80 Master. 14409_ U-05 Engineer lays Concrete. 14409_ Penetrated by Slug. 14410_ K-01 Serf collects debris. 14410_ Penetrated by Slug. 14410_ Slammed into H-77 Assassin. 14410_ Destabilizing: System corrupted (+2). Map ----- +----------------------------------------------------+ | #??######+####?? #?????????????????# # | | ###### #???? %#??????????######## # | | #######/############ + = | | "" %% "%" *=%= # | | "T % % !% = # | | ]#######+#######% ### %% # | | ##+### ! #???? #?????# ####+##### # | | #####%##?? ! #?????# # #%![ ####### | | #???# #?# #?????# # % # [[##????? | | " #???#%#?# #?????# / !!! + ##????? | | " #???# #?# #?????# ## [ !! # # | | " #???# #?# #??####!## !! # # | | " #???# #?########??# %% ## #^^ # """ | | #???# #?########### ## # # """" | | #???# #?# # ## " # # """ | | #???# #?# / % ## " # # """ | | ######???# #?# # ###########+## + ?? | | ?????????# #?# ! #%#?????????# ## # ?? | | ?????????# #?###########[##????????? ## #?#?##? | | ?????????# #??? ![#!%|#?????????### #?????? | | ?????????#=#??????? %/%=|#???????????# #?????? | | ?????????#[#??????????#[*[#???????????# #?????? | | ?????????# #??????????##!##???????????# #?????? | | ####????##%#???????????#!#????????????+ ??????? | | #????## #?????????###[###???????????? ??????? | | #######%#?????????# hp@ #?????????????????????? | | " #%% ###%###########p h #?????????????????????? | | " #% !*!%% % p #?????????????????????? | | ! #!%%###/########### #?????????????????????? | | [ ##%### %* #?????# #?????????????????????? | | " !##%#?#==! #?????#######?????????????????????? | | " ##%#?# ! #?????????????????????????????????? | | " ##%#?# #?????????????????????????????????? | | ##[#?#! #?????????????????????????????????? | | ##%#?# #?????????????????????????????????? | | #####%#?########?????????????????????????????????? | | !! !! #??????????????????????????????????????????? | | !] [ %#??????????????????????????????????????????? | | !] ] #??????????????????????????????????????????? | | #??????????????????????????????????????????? | | #??????????????????????????????????????????? | | ??????????????????????????????????????????? | | ??????????????????????????????????????????? | | ?????????????????????????????????????????? | | ?????????????????????????????????????????? | | #????????????????????????????????????????? | | ##????????????????????????????????????????? | | #?????????????????????????????????????????? | | "" +?????????????????????????????????????????? | | "" #?????????????????????????????????????????? | +----------------------------------------------------+ Best States ------------- Heat Dissipation 93 Coolant Potential 65 Energy Generation 53 Energy Capacity 660 Matter Stores 550 Matter Capacity 550 Sight Range 16 Robot Scan Range 16 Terrain Scan Range 20 Terrain Scan Density 10 ECM Strength 1 Additional Mass Support 20 Base Temperature (-) 200 Armor Coverage 1200 Resistance: KI 20 Resistance: TH 30 Core Shielding 20 Phase Shifting 10 Evasion (%) 55 Targeting Accuracy 8 Target Analysis 6 Recoil Reduction 4 Particle Charging 15 Offensive Hacking 12 Relay Coupler Types 2 Relay Coupler Value 45 Authchip Count 5 Item Schematics ----------------- None Robot Schematics ------------------ M-28 Smith | -6/Factory | Hacked Fabricated ------------ Nothing Alien Tech Used ----------------- None Achievements -------------- None Challenges ------------ None Game ------ Seed WeldingEtherialNukerbomber Manual? 0 Play Time 03:00:10 Cumulative 54.2 hours Start 2023.09.16 @ 11:13:16 End 2023.09.16 @ 20:06:54 Sessions 5 Manual Loads 0 Difficulty Rogue Special Mode None Game No. 33 Rogue 33 Adventurer 0 Explorer 0 Win Type - Total 0 Types 0/0/0/0/0/0/0/0/0 Lore% 22 Gallery% 40 Achievement% 35 Wizard Run 0 Options --------- ASCII 0 Keyboard 1 Movement Numpad Keybinds 0 Fullscreen 1 Font 24/Smallcaps Map View 76x50 Tactical HUD 1 Map Filters NONE Filters NONE Steam 1 RUN: 40f74b5f-4e27-4962-99d5-e24b57dbb5d7